[Event "Sheffield Masters 2024"]
[White "Wall,Tim P"]
[Black "Chow,Samuel"]
[Site "Sheffield"]
[Round "8.4"]
[Annotator "TA"]
[Result "1-0"]
[Date "2024.04.14"]
[WhiteElo "2197"]
[BlackElo "2350"]
[PlyCount "81"]
[TimeControl "5400+30"]

{[%evp 11,81,0,0,-20,-22,-27,-31,-56,-30,-68,-29,-49,-48,-52,-49,-46,-43,-49,-41,-46,-19,-27,-14,-41,0,-67,-54,-70,-68,-114,0,-7,0,0,122,0,109,110,211,208,286,294,304,46,45,79,72,90,812,797,1050,988,970,956,1868,1835,1675,1258,1154,1156,29992,29993,29993,29979,29992,29993,29995,29996,29996,29997,29997,29998]} 1. e4 {[%emt 0:0:7]} e6 {[%emt 0:0:11]} 2. d4 {[%emt 0:0:10]} d5 {[%emt 0:0:9]} 3. e5 {[%emt 0:0:14]} c5 {[%emt 0:0:14]} 4. c3 {[%emt 0:0:15]} Nc6 {[%emt 0:0:34]} 5. Nf3 {[%emt 0:0:11]} Qb6 {[%emt 0:0:24]} 6. Bd3 {[%emt 0:0:14]} cxd4 {[%emt 0:0:15]} 7. O-O {[%emt 0:0:10]} Bd7 {[%emt 0:0:16]} 8. Re1 {[%emt 0:0:13]} Nge7 {[%emt 0:1:38]} 9. h4 {[%emt 0:0:39] Black is slightly better.} a6 {[%emt 0:0:55]} 10. h5 {[%emt 0:4:33]} g6 {[%emt 0:0:31]} 11. Nbd2 {[%emt 0:2:12][%cal Yb1d2,Yd2b3,Yb3d4][%mdl 32]} gxh5 {[%emt 0:1:11]} 12. Nb3 {[%emt 0:1:53]} dxc3 {[%emt 0:1:2]} 13. bxc3 {[%emt 0:0:44]} Ng6 {[%emt 0:1:5] Against Nh4} 14. Nbd4 {[%emt 0:17:55]} Qc7 {[%emt 0:4:35]} 15. Rb1 {[%emt 0:10:58]} Be7 {[%emt 0:14:14]} (15... Ngxe5 16. Nxe5 Nxe5 17. Bf4 $11 )16. Qe2 {[%emt 0:4:40]} Rg8 {[%emt 0:8:40]} 17. Bd2 {[%emt 0:7:2]} h4 {[%emt 0:2:37]} 18. Kh1 {[%emt 0:0:18]} (18. Nxc6 $11 Bxc6 19. Nd4 )Na5 $15 {[%emt 0:2:59]} 19. Ng5 {[%emt 0:13:6]} Rg7 {[%emt 0:10:1]} 20. Nh3 {[%emt 0:5:42]} (20. Ngf3 $15 {was preferrable.} )b5 {[%emt 0:9:52]} (20... Nc4 $17 {Strongly threatening ...Nxd2.} 21. Bh6 Rg8 )21. f4 $1 $11 {[%emt 0:2:33] And now f5 would win.} Nc4 {[%emt 0:0:17]} 22. Bc1 {[%emt 0:1:1]} Kd8 {[%emt 0:8:43]} (22... O-O-O $11 )23. Qh5 {[%emt 0:10:1]} (23. f5 $16 {Threatens to win with f6.} Ngxe5 24. Bxc4 (24. Bf4 Bd6 $16 ))Qa5 {[%emt 0:2:35]} (23... Kc8 $11 {keeps the balance.} )24. Bxc4 $1 $16 {[%emt 0:5:22]} bxc4 {[%emt 0:1:42]} (24... Qxc3 $16 25. Bb2 Qg3 (25... Qxc4 $2 26. f5 $18 ))25. f5 {[%emt 0:3:48]} exf5 {[%emt 0:0:52]} 26. Bh6 {[%emt 0:2:45]} Rg8 {[%emt 0:1:54]} 27. Ng5 $2 {[%emt 0:2:1]} (27. Nxf5 Qxc3 28. Be3 Be6 $11 (28... Nxe5 $2 29. Nxe7 Kxe7 30. Qxh4+ f6 31. Bd4 $18 ))(27. Bd2 $18 Rh8 28. Ng5 (28. Nxf5 Re8 $16 ))Qxc3 $14 {[%emt 0:6:30]} 28. Nxf7+ {[%emt 0:0:18]} (28. Nxf5 Bxf5 29. Nxf7+ Kc7 30. Qxf5 h3 $17 )Kc7 {[%emt 0:0:29][%cal Yd8c7,Yc7b6,Yb6a5,Ya5a4,Ya4a3,Ya3a2][%mdl 32]} 29. Be3 $36 {[%emt 0:2:32][%cal Yh6e3,Ye3d4,Yd4c3][%mdl 2080] White is in control. Dancing on a razor blade. White is much more active.} (29. Nxf5 Bxf5 30. Qxf5 h3 $17 )h3 $2 {[%emt 0:5:40][%mdl 8192] Loses the game.} 30. Qxh3 $18 {[%emt 0:0:46][%cal Ye5e6]} Qd3 {[%emt 0:2:4]} 31. e6 {[%emt 0:0:53] Intending Qg3+ and mate.} Bb5 {[%emt 0:2:32]} 32. Nxf5 {[%emt 0:0:31] A dynamic duo of knights.} ({Inferior is} 32. Qxf5 Qxf5 33. Nxf5 Bf6 $11 )d4 {[%emt 0:5:11]} 33. Qg3+ {[%emt 0:1:6]} ({Weaker is} 33. Bxd4 Qxh3+ 34. gxh3 Rae8 $16 )Kb6 {[%emt 0:0:58]} 34. Bxd4+ {[%emt 0:0:48]} Ka5 {[%emt 0:0:14]} 35. Bc3+ {[%emt 0:0:57]} Ka4 {[%emt 0:0:14] [#]} 36. Qxd3 $1 {[%emt 0:0:42] White mates.} cxd3 {[%emt 0:0:3]} 37. Nxe7 {[%emt 0:0:42]} Nxe7 {[%emt 0:0:9]} 38. Re4+ {[%emt 0:0:41]} Ka3 {[%emt 0:0:3]} 39. Rb3+ {[%emt 0:0:30]} Kxa2 {[%emt 0:0:6]} 40. Rb2+ {[%emt 0:0:13]} Ka3 {[%emt 0:0:5] [#]} 41. Re1 $1 {[%emt 0:0:12] Weighted Error Value: White=0.23 (precise) /Black=0.43.  Loses game:     	---       	Black=1      Missed win:     	White=1     	---        Mistake:       	White=3     	Black=4      Inaccurate:     	White=2     	Black=6      OK:         	White=5     	Black=5      Best:        	White=2     	Black=3      Strong:       	White=2     	---} 1-0

[Event "Sheffield Masters 2024"]
[White "Pein,Jonathan"]
[Black "O`Gorman,Tom"]
[Site "Sheffield"]
[Round "8.5"]
[Annotator "TA"]
[Result "0-1"]
[Date "2024.04.14"]
[WhiteElo "2247"]
[BlackElo "2321"]
[PlyCount "86"]
[TimeControl "5400+30"]

{[%evp 9,86,-32,-18,-16,-6,-32,-32,-33,-43,-39,-33,-47,-45,-34,0,0,6,-39,27,39,40,13,11,16,31,25,35,25,33,12,16,3,7,7,11,10,9,5,3,0,0,0,12,0,0,0,0,0,0,-8,-8,-8,-8,-8,-8,-81,8,8,8,8,8,8,8,8,8,8,8,-29942,-29971,-29973,-29973,-29978,-29979,-29980,-29981,-29981,-29982,-29982,-29983]} 1. e4 {[%emt 0:0:2]} e5 {[%emt 0:0:8]} 2. Nf3 {[%emt 0:0:9]} Nc6 {[%emt 0:0:6]} 3. Bc4 {[%emt 0:0:29]} Bc5 {[%emt 0:0:8]} 4. d4 {[%emt 0:0:14]} Bxd4 {[%emt 0:1:52]} 5. Nxd4 {[%emt 0:0:6]} Nxd4 {[%emt 0:0:11]} 6. Be3 {[%emt 0:0:7]} Nc6 {[%emt 0:2:17]} 7. Qg4 {[%emt 0:0:31]} Qf6 {[%emt 0:1:36][%cal Yd7d5] And now ...d5! would win.} 8. Nc3 {[%emt 0:2:31] Black is slightly better.} d6 {[%emt 0:2:15]} (8... d5 $6 9. Qg3 Nge7 (9... dxc4 $2 10. Nd5 $16 )10. Nxd5 (10. Bxd5 Be6 $16 )Nxd5 11. Bxd5 $16 )9. Qe2 {[%emt 0:3:22]} Be6 {[%emt 0:9:57]} 10. Nd5 {[%emt 0:0:2]} Qd8 {[%emt 0:0:50]} 11. O-O-O {[%emt 0:11:29]} Na5 {[%emt 0:18:31] ...Nxc4 would now be deadly.} 12. Bd3 {[%emt 0:0:27]} Ne7 {[%emt 0:6:12]} 13. Qd2 {[%emt 0:7:24]} Bxd5 {[%emt 0:12:39]} (13... Nac6 $15 )14. exd5 $11 {[%emt 0:2:13]} c5 {[%emt 0:1:55][%cal Ye8g8]} 15. dxc6 {[%emt 0:6:14]} Naxc6 {[%emt 0:1:21]} 16. Be4 {[%emt 0:14:51]} d5 {[%emt 0:2:8]} 17. Bxd5 {[%emt 0:0:33]} Nxd5 {[%emt 0:0:6]} 18. Qxd5 {[%emt 0:0:16]} O-O {[%emt 0:0:45]} 19. Qxd8 {[%emt 0:7:34]} Rfxd8 {[%emt 0:0:19]} 20. Rxd8+ {[%emt 0:0:9]} Rxd8 {[%emt 0:0:7]} 21. Rd1 {[%emt 0:0:11]} Rxd1+ {[%emt 0:0:57]} 22. Kxd1 {[%emt 0:0:2][%mdl 4096] Endgame. KB-KN} f5 {[%emt 0:1:14]} 23. f3 {[%emt 0:2:37]} Kf7 {[%emt 0:2:37]} 24. Kd2 {[%emt 0:1:10]} Ke6 {[%emt 0:0:57]} 25. c4 {[%emt 0:3:2]} a6 {[%emt 0:5:9]} 26. Kc3 {[%emt 0:11:19]} f4 {[%emt 0:4:34]} 27. Bf2 {[%emt 0:6:20]} Kf5 {[%emt 0:0:8]} 28. b4 {[%emt 0:1:49][%cal Yb2b4,Yb4b5][%mdl 32]} e4 {[%emt 0:1:54]} 29. b5 {[%emt 0:5:48]} Ne5 {[%emt 0:2:7]} 30. fxe4+ {[%emt 0:3:3]} Kxe4 {[%emt 0:0:2]} 31. a4 {[%emt 0:2:47]} g5 {[%emt 0:1:48]} 32. Ba7 {[%emt 0:7:58]} (32. Bg1 $11 {keeps the balance.} )h5 {[%emt 0:3:53]} ({Black should try} 32... g4 $1 $17 )33. c5 {[%emt 0:0:51][%cal Yc5c6] Threatens to win with c6!} axb5 {[%emt 0:1:15]} 34. axb5 {[%emt 0:0:1]} g4 {[%emt 0:11:59] [#]} 35. c6 $1 {[%emt 0:0:4]} bxc6 {[%emt 0:0:4]} (35... Nxc6 36. bxc6 )36. b6 {[%emt 0:0:8]} h4 {[%emt 0:0:49]} (36... g3 37. hxg3 fxg3 38. b7 )(36... Nd7 $5 37. b7 $8 f3 $11 )37. b7 {[%emt 0:0:37]} Nd7 {[%emt 0:0:4]} 38. b8=Q $4 {[%emt 0:3:0][%mdl 8192] Loses the game.} (38. b8=R $2 {is the wrong capture.} Nxb8 39. Bxb8 Ke3 $19 )(38. Kd2 $11 g3 39. hxg3 (39. b8=R Nxb8 40. hxg3 hxg3 $11 )fxg3 40. Bb6 (40. b8=R Nxb8 41. Bxb8 Kf5 $11 ))Nxb8 {[%emt 0:0:4] Black mates.} 39. Bxb8 {[%emt 0:0:0] [#]} Ke3 $1 {[%emt 0:0:17]} 40. Kc2 {[%emt 0:0:21] [#]} f3 $1 {[%emt 0:0:17]} 41. gxf3 {[%emt 0:0:14]} gxf3 {[%emt 0:0:6]} 42. Kd1 {[%emt 0:0:48]} f2 {[%emt 0:0:11]} 43. Ba7+ {[%emt 0:0:7]} Kf3 {[%emt 0:0:6] Weighted Error Value: White=0.28 (precise) /Black=0.12 (very precise) .  Loses game:     	White=1     	---        Mistake:       	White=1     	Black=2      Inaccurate:     	White=3     	Black=1      OK:         	White=16    	Black=15     Best:        	White=1     	Black=2} 0-1

[Event "Sheffield Masters 2024"]
[White "O`Gorman,Tom"]
[Black "Nagy,Gabor"]
[Site "Sheffield"]
[Round "9.1"]
[Annotator "TA"]
[Result "1-0"]
[Date "2024.04.14"]
[WhiteElo "2321"]
[BlackElo "2436"]
[PlyCount "129"]
[TimeControl "5400+30"]

{[%evp 39,129,5,0,0,13,0,15,14,14,14,14,14,139,134,129,129,134,104,106,97,147,163,140,118,109,31,52,0,57,49,52,21,39,6,38,43,45,29,45,50,39,0,94,94,108,93,114,18,20,18,17,24,106,97,70,0,0,0,8,8,8,8,8,8,36,36,721,636,673,666,1263,1252,576,8,97,8,8,19,29966,29966,29987,29988,29988,29989,29989,29990,29990,29991,29991,29992,29992,29993]} 1. d4 {[%emt 0:0:3]} Nf6 {[%emt 0:0:48]} 2. c4 {[%emt 0:0:6]} e6 {[%emt 0:0:12]} 3. Nc3 {[%emt 0:0:6]} d5 {[%emt 0:0:26]} 4. cxd5 {[%emt 0:0:7]} exd5 {[%emt 0:0:8]} 5. Bg5 {[%emt 0:0:5]} Be7 {[%emt 0:0:14]} 6. e3 {[%emt 0:0:8]} h6 {[%emt 0:0:13]} 7. Bh4 {[%emt 0:0:37]} c6 {[%emt 0:1:6]} 8. Bd3 {[%emt 0:0:8]} Ne4 {[%emt 0:0:13]} 9. Bxe7 {[%emt 0:1:47]} Qxe7 {[%emt 0:1:37]} 10. Bxe4 {[%emt 0:2:25]} dxe4 {[%emt 0:0:14]} 11. Nge2 {[%emt 0:0:34]} O-O {[%emt 0:0:24]} 12. Qc2 {[%emt 0:6:15]} Bf5 {[%emt 0:0:40]} 13. O-O {[%emt 0:2:12]} Bh7 {[%emt 0:1:22]} 14. Rac1 {[%emt 0:8:0]} Nd7 {[%emt 0:0:52]} 15. Rfd1 {[%emt 0:1:34]} Rac8 {[%emt 0:4:26]} 16. Qa4 {[%emt 0:4:8]} a6 {[%emt 0:0:52]} 17. Qa5 {[%emt 0:1:6]} Rfd8 {[%emt 0:1:42]} 18. Na4 {[%emt 0:2:24]} g5 {[%emt 0:3:2]} 19. Nec3 {[%emt 0:4:52]} Bg6 {[%emt 0:0:53]} 20. Nb6 {[%emt 0:3:48]} Nxb6 {[%emt 0:0:23]} 21. Qxb6 {[%emt 0:0:6]} Rd6 {[%emt 0:10:9]} 22. Qb3 {[%emt 0:7:16]} Kh7 {[%emt 0:6:38]} 23. Qb4 {[%emt 0:14:17]} Rc7 {[%emt 1:5:26]} 24. Na4 {[%emt 0:11:0]} f6 {[%emt 0:0:0]} 25. Nb6 {[%emt 0:3:50]} c5 {[%emt 0:0:0]} (25... Qd8 $11 )26. Rxc5 $16 {[%emt 0:4:44]} Rxc5 {[%emt 0:0:0]} 27. Qxc5 {[%emt 0:0:13]} Qd8 {[%emt 0:0:0]} 28. Nc4 {[%emt 0:1:39]} Rc6 {[%emt 0:0:0]} 29. Qb4 {[%emt 0:2:11]} b5 {[%emt 0:0:0]} (29... b6 $142 )30. Na5 $16 {[%emt 0:1:56]} Rc2 {[%emt 0:0:0]} 31. h3 {[%emt 0:0:38]} Bh5 {[%emt 0:0:0]} 32. Re1 {[%emt 0:1:23]} (32. Nb7 Qd7 33. Nc5 Rxc5 34. Qxc5 Bxd1 $19 )(32. Rf1 $16 )Bf7 $1 $14 {[%emt 0:0:0]} 33. a4 {[%emt 0:4:9]} (33. Nb3 $14 )bxa4 {[%emt 0:0:0]} ({Black should play} 33... Qd7 $11 )34. Nb7 {[%emt 0:3:45]} Qd7 $1 {[%emt 0:0:0]} 35. Nc5 {[%emt 0:0:32]} Qb5 $1 {[%emt 0:0:0]} 36. Qa3 {[%emt 0:1:12]} Qxb2 {[%emt 0:0:0]} (36... a5 {looks sharper.} 37. Nxe4 Qb4 38. Rb1 f5 )37. Qxb2 {[%emt 0:0:14]} Rxb2 {[%emt 0:0:0]} 38. Nxa4 {[%emt 0:0:8]} Rc2 {[%emt 0:0:0]} 39. Nc5 {[%emt 0:0:13]} a5 {[%emt 0:0:0]} 40. Ra1 {[%emt 0:3:51]} f5 {[%emt 0:0:0]} (40... Ra2 $11 41. Rxa2 Bxa2 )41. Rxa5 $16 {[%emt 0:0:11]} Rc1+ {[%emt 0:0:0]} 42. Kh2 {[%emt 0:0:4]} Rc2 {[%emt 0:0:0]} 43. Ra7 {[%emt 0:1:40]} (43. d5 $16 {Strongly threatening d6.} Bxd5 44. Nd7 )Kg8 $1 $11 {[%emt 0:0:0]} 44. Kg3 {[%emt 0:2:35]} h5 $1 {[%emt 0:0:0]} 45. h4 {[%emt 0:0:58]} gxh4+ {[%emt 0:0:0]} (45... f4+ $1 $11 {keeps the balance.} 46. exf4 gxh4+ 47. Kh3 (47. Kxh4 Rxf2 48. Kg3 e3 $11 )Rxf2 )46. Kxh4 $16 {[%emt 0:0:3]} Rxf2 {[%emt 0:0:0]} 47. Kg5 {[%emt 0:2:22]} (47. g3 $1 $14 )f4 $11 {[%emt 0:0:0]} 48. exf4 {[%emt 0:1:22]} Rxg2+ {[%emt 0:0:0]} 49. Kf6 {[%emt 0:0:26]} Rg6+ {[%emt 0:0:0]} 50. Kf5 {[%emt 0:0:12]} e3 {[%emt 0:0:0]} 51. Re7 {[%emt 0:0:39]} Rg3 {[%emt 0:0:0]} 52. Ne4 {[%emt 0:0:34]} Bg6+ $2 {[%emt 0:0:0][%mdl 8192]} (52... Rg7 $14 53. Nf6+ Kf8 54. Rxe3 Bg6+ 55. Kg5 Bf7+ 56. Kh4 Rg6 57. Nh7+ (57. Nxh5 Rh6 $11 )Kg7 )53. Kf6 $18 {[%emt 0:0:1]} Bxe4 {[%emt 0:0:0]} 54. Rxe4 {[%emt 0:0:1]} Rg4 {[%emt 0:0:0]} 55. d5 {[%emt 0:1:9]} (55. Rxe3 Rxf4+ 56. Ke5 Rf1 $11 )e2 {[%emt 0:0:0]} 56. Rxe2 $2 {[%emt 0:1:12]} ({Better is} 56. Kf5 $18 Rg1 57. Rxe2 )Rxf4+ $11 {[%emt 0:0:0] [#]} 57. Ke7 {[%emt 0:0:17]} (57. Ke5 $1 $16 {[%cal Re5f4]} Rf3 58. Rh2 )Rf7+ $11 {[%emt 0:0:0]} 58. Ke6 {[%emt 0:0:25]} Kf8 $2 {[%emt 0:0:0][%mdl 8192]} (58... Kg7 $11 )59. d6 {[%emt 0:0:7]} Rf1 {[%emt 0:0:0] [#]} 60. d7 $1 {[%emt 0:0:58]} Rd1 {[%emt 0:0:0]} 61. Re5 {[%emt 0:0:18]} h4 {[%emt 0:0:0]} 62. Rf5+ {[%emt 0:0:17]} Kg7 {[%emt 0:0:0]} 63. Rd5 {[%emt 0:0:32]} Rxd5 {[%emt 0:0:0]} 64. Kxd5 {[%emt 0:0:6]} h3 {[%emt 0:0:0]} 65. d8=Q {[%emt 0:0:6]} (65. d8=R $2 {too greedy.} h2 66. Ke5 (66. Rd7+ $2 Kg6 $19 )h1=Q $19 (66... h1=R 67. Kf4 $11 ))1-0